bitfinex/quotes_SOLUSD_20250514
["timestamp","ask_amount","ask_price","bid_price","bid_amount"]
[1747228856268,138.0,179.44,179.41,26.781338]
[1747228856592,138.0,179.44,179.42,26.80640094]
[1747228856987,143.57311128,179.44,179.42,26.80640094]
[1747228857186,138.0,179.48,179.43,26.80640094]
[1747228857496,138.0,179.48,179.4,19.12]
[1747228857497,5.57196188,179.47,179.46,26.80640094]
[1747228857807,32.37836282,179.47,179.42,26.80640094]
[1747228857959,32.37836282,179.47,179.39,10.1959199]
[1747228858163,138.0,179.46,179.42,26.80640094]
[1747228858959,5.57258289,179.45,179.42,45.88640094]
[1747228860376,143.57237337,179.46,179.44,26.80640094]
[1747228860697,138.0,179.46,179.45,26.80640094]
[1747228861194,52.96641143,179.58,179.46,7.8232]
[1747228861195,143.57049529,179.52,179.46,7.8232]
[1747228861398,143.57049529,179.52,179.51,26.80640094]
[1747228861696,143.57049529,179.52,179.51,45.92640094]
[1747228862074,138.0,179.52,179.51,45.92640094]
[1747228862575,138.0,179.52,179.51,19.12]
[1747228862790,138.0,179.56,179.51,45.92640094]
[1747228862964,143.56923203,179.56,179.54,26.80640094]
[1747228863166,143.56923203,179.56,179.53,26.80640094]
[1747228863365,157.49215472,179.56,179.53,26.80640094]
[1747228863816,143.56923203,179.56,179.54,26.80640094]
[1747228863981,143.56923203,179.56,179.55,26.80640094]
[1747228864295,143.56923203,179.56,179.51,19.12]
[1747228864472,143.56923203,179.56,179.54,26.80640094]
[1747228864676,143.56923203,179.56,179.55,26.80640094]
[1747228865811,157.49215472,179.56,179.54,26.80640094]
[1747228866391,157.49215472,179.56,179.46,34.62960094]
[1747228866392,184.29855566,179.56,179.46,34.62960094]
[1747228866703,26.80640094,179.52,179.46,1.5519]
[1747228866902,138.0,179.51,179.47,19.18]
[1747228867109,5.57103064,179.5,179.48,26.80640094]
[1747228867309,143.57080037,179.51,179.49,26.80640094]
[1747228867512,143.57080037,179.51,179.5,26.80640094]
[1747228867718,143.57080037,179.51,179.49,26.80640094]
[1747228868013,138.0,179.51,179.5,26.80640094]
[1747228868175,143.57072029,179.51,179.5,26.80640094]
[1747228868578,138.0,179.51,179.5,26.80640094]
[1747228868809,143.57072029,179.51,179.5,26.80640094]
[1747228870107,143.57072029,179.51,179.49,19.16]
[1747228870475,184.30392196,179.51,179.46,1.5519]
[1747228870802,26.80640094,179.49,179.44,26.80640094]
[1747228871108,5.57134102,179.49,179.46,26.80640094]
[1747228871312,19.49969357,179.49,179.45,26.80640094]
[1747228872077,19.49969357,179.49,179.42,19.18]
[1747228872078,19.49969357,179.49,179.46,26.80640094]
[1747228872479,5.57134102,179.49,179.48,26.80640094]
[1747228872894,5.57134102,179.49,179.48,19.18]
[1747228875039,19.49969357,179.49,179.46,26.80640094]
[1747228875215,26.80640094,179.48,179.44,19.12]
[1747228875720,138.0,179.47,179.44,19.12]
[1747228876233,138.0,179.47,179.43,45.92640094]
[1747228876428,138.0,179.47,179.43,26.80640094]
[1747228876635,138.0,179.47,179.45,26.80640094]
[1747228877130,5.57227237,179.46,179.45,26.80640094]
[1747228877313,138.0,179.47,179.45,26.80640094]
[1747228877628,143.57201243,179.47,179.46,26.80640094]
[1747228878206,5.57159737,179.49,179.46,26.80640094]
[1747228878406,5.57159737,179.49,179.44,45.12]
[1747228878608,5.57159737,179.49,179.48,26.80640094]
[1747228879236,19.49860724,179.5,179.46,26.80640094]
[1747228879637,19.49860724,179.5,179.47,26.80640094]
[1747228880642,19.49860724,179.5,179.44,26.80640094]
[1747228880643,164.80640094,179.49,179.44,26.80640094]
[1747228880826,26.80640094,179.48,179.41,1.6529]
[1747228881142,164.80640094,179.48,179.43,26.80640094]
[1747228881340,19.50186659,179.47,179.43,26.80640094]
[1747228881517,26.80640094,179.46,179.42,19.12]
[1747228881713,164.80640094,179.45,179.4,26.80640094]
[1747228882019,164.80640094,179.45,179.4,45.92640094]
[1747228882210,26.80640094,179.44,179.39,73.69612084]
[1747228882540,26.80640094,179.44,179.39,46.8897199]
[1747228882930,26.80640094,179.44,179.39,73.69612084]
[1747228883315,5.57320403,179.43,179.39,73.69612084]
[1747228883653,19.50621411,179.43,179.39,73.69612084]
[1747228883809,19.50621411,179.43,179.39,54.57612084]
[1747228885453,5.57289344,179.44,179.4,26.80640094]
[1747228885662,138.0,179.45,179.39,27.7697199]
[1747228885663,143.57266023,179.45,179.43,26.80640094]
[1747228885950,5.57165143,179.48,179.44,26.80640094]
[1747228886237,138.0,179.49,179.47,26.80640094]
[1747228886535,5.56916907,179.56,179.48,26.80640094]
[1747228886738,19.49209176,179.56,179.52,26.80640094]
[1747228887050,19.49209176,179.56,179.53,19.14]
[1747228887935,19.49209176,179.56,179.52,26.80640094]
[1747228888639,26.80640094,179.53,179.51,19.12]
[1747228888838,164.80640094,179.53,179.46,1.6323]
[1747228889021,26.80640094,179.51,179.46,26.80640094]
[1747228889226,138.0,179.53,179.47,26.80640094]
[1747228889418,5.57040998,179.52,179.47,26.80640094]
[1747228889818,46.30283587,179.52,179.47,26.80640094]
[1747228890013,46.30283587,179.52,179.46,19.12]
[1747228890014,26.80640094,179.51,179.46,45.92640094]
[1747228890213,46.30283587,179.52,179.47,26.80640094]
[1747228891145,19.49643493,179.52,179.48,26.80640094]
[1747228891445,40.7282617,179.58,179.51,26.80640094]
[1747228891751,143.56885894,179.57,179.53,26.80640094]
[1747228892260,143.56885894,179.57,179.55,26.80640094]
[1747228892451,143.56885894,179.57,179.52,19.14]
[1747228892636,143.56885894,179.57,179.55,26.80640094]
[1747228892837,143.56885894,179.57,179.54,26.80640094]
[1747228893021,143.56885894,179.57,179.55,26.80640094]
[1747228893223,143.56885894,179.57,179.56,26.80640094]
[1747228893524,138.0,179.57,179.56,26.80640094]
[1747228893751,143.56885894,179.57,179.55,26.80640094]
[1747228894053,143.56885894,179.57,179.53,26.80640094]
[1747228894266,157.49100629,179.57,179.54,26.80640094]
[1747228894550,157.49100629,179.57,179.53,26.80640094]
[1747228894943,157.49100629,179.57,179.53,45.92640094]
[1747228895128,164.80640094,179.56,179.53,19.12]
[1747228895626,5.56947925,179.55,179.53,19.12]
[1747228896935,19.49317738,179.55,179.51,26.80640094]
[1747228897140,138.0,179.54,179.52,26.80640094]
[1747228897357,138.0,179.54,179.53,26.80640094]
[1747228897827,143.56978946,179.54,179.53,26.80640094]
[1747228898029,138.0,179.54,179.53,26.80640094]
[1747228898632,143.56978946,179.54,179.53,19.08]
[1747228898853,143.56978946,179.54,179.53,45.88640094]
[1747228899050,143.56978946,179.54,179.53,26.80640094]
[1747228899351,143.56978946,179.54,179.52,19.08]
[1747228899936,164.80640094,179.53,179.46,20.7046]
[1747228900173,26.80640094,179.5,179.46,19.12]
[1747228900329,26.80640094,179.49,179.46,19.12]
[1747228900527,26.80640094,179.49,179.45,19.08]
[1747228900952,26.80640094,179.5,179.45,45.88640094]
[1747228901352,138.0,179.53,179.49,26.80640094]
[1747228901534,138.0,179.53,179.45,19.08]
[1747228901535,138.0,179.53,179.5,26.80640094]
[1747228901846,19.49426311,179.54,179.5,26.80640094]
[1747228902026,5.56978946,179.54,179.52,26.80640094]
[1747228902432,5.56978946,179.54,179.51,26.80640094]
[1747228902848,5.56978946,179.54,179.52,26.80640094]
[1747228903053,5.56978946,179.54,179.47,25.5858]
[1747228903367,19.49426311,179.54,179.49,26.80640094]
[1747228903547,46.30066405,179.54,179.49,19.08]
[1747228904259,46.30066405,179.54,179.48,45.88640094]
[1747228904674,46.30066405,179.54,179.49,26.80640094]
[1747228904842,5.56978946,179.54,179.49,26.80640094]
[1747228905052,5.56978946,179.54,179.51,26.80640094]
[1747228906381,46.29957832,179.55,179.48,19.08]
[1747228906588,26.80640094,179.54,179.49,19.12]
[1747228906878,26.80640094,179.54,179.49,45.92640094]
[1747228907653,26.80640094,179.52,179.43,32.3985]
[1747228907857,26.80640094,179.52,179.44,38.24]
[1747228908063,26.80640094,179.52,179.46,26.80640094]
[1747228908293,26.80640094,179.51,179.46,26.80640094]
[1747228908480,157.49860724,179.5,179.46,26.80640094]
[1747228908781,138.0,179.49,179.46,45.90640094]
[1747228908964,138.0,179.49,179.47,26.80640094]
[1747228909648,138.0,179.49,179.48,26.80640094]
[1747228910878,138.0,179.49,179.48,45.92640094]
[1747228911573,138.0,179.49,179.48,65.04640094]
[1747228911879,143.57134102,179.49,179.48,65.04640094]
[1747228912080,138.0,179.49,179.48,65.04640094]
[1747228912605,143.57134102,179.49,179.48,65.04640094]
[1747228914662,5.57134102,179.49,179.48,65.04640094]
[1747228914862,5.57040998,179.52,179.48,65.04640094]
[1747228915063,19.49643493,179.52,179.48,65.04640094]
[1747228915483,19.49643493,179.52,179.43,51.04814886]
[1747228915484,138.0,179.51,179.43,6.3985]
[1747228915689,26.80640094,179.49,179.44,45.84640094]
[1747228915995,26.80640094,179.5,179.45,26.80640094]
[1747228917065,19.49969357,179.49,179.45,26.80640094]
[1747228917465,19.49969357,179.49,179.46,26.80640094]
[1747228917803,5.57134102,179.49,179.48,26.80640094]
[1747228918177,5.57134102,179.49,179.44,19.04]
[1747228918390,5.57134102,179.49,179.47,26.80640094]
[1747228918598,5.57134102,179.49,179.44,19.04]
[1747228918599,5.57134102,179.49,179.48,26.80640094]
[1747228919073,138.0,179.51,179.43,26.0]
[1747228919074,19.49860724,179.5,179.46,26.80640094]
[1747228919274,19.49860724,179.5,179.46,45.92640094]
[1747228919483,26.80640094,179.47,179.39,8.6697199]
[1747228919717,26.80640094,179.44,179.4,19.1]
[1747228919912,138.0,179.43,179.4,19.1]
[1747228920829,138.0,179.43,179.39,54.59612084]
[1747228921206,5.57351465,179.42,179.39,54.59612084]
[1747228921733,143.5732416,179.43,179.41,26.80640094]
[1747228922536,143.5732416,179.43,179.39,8.6697199]
[1747228922728,143.5732416,179.43,179.4,45.92640094]
[1747228923034,143.5732416,179.43,179.42,26.80640094]
[1747228923353,143.5732416,179.43,179.41,45.94640094]
[1747228924141,143.5732416,179.43,179.41,19.14]
[1747228925011,138.0,179.43,179.42,26.80640094]
[1747228925218,10.0,179.54,179.42,26.80640094]
[1747228925219,138.0,179.49,179.42,26.80640094]
[1747228925444,143.57165143,179.48,179.46,26.80640094]
[1747228925821,143.57165143,179.48,179.47,26.80640094]
[1747228926136,143.57165143,179.48,179.46,45.94640094]
[1747228926352,143.57165143,179.48,179.46,19.14]
[1747228926845,138.0,179.48,179.46,45.94640094]
[1747228927022,138.0,179.52,179.47,26.80640094]
[1747228927229,138.0,179.52,179.51,26.80640094]
[1747228927431,143.57040998,179.52,179.5,26.80640094]
[1747228928624,170.37681092,179.52,179.48,19.12]
[1747228929132,26.0,179.53,179.45,19.1]
[1747228929133,5.57134102,179.49,179.45,19.1]
[1747228929441,138.0,179.48,179.44,19.1]
[1747228929629,138.0,179.48,179.4,1.6577]
[1747228929967,138.0,179.47,179.43,26.80640094]
[1747228930118,138.0,179.47,179.41,19.12]
[1747228930320,26.80640094,179.45,179.41,19.12]
[1747228930624,164.80640094,179.44,179.39,54.57612084]
[1747228930820,164.80640094,179.43,179.39,8.6697199]
[1747228931020,138.0,179.43,179.39,8.6697199]
[1747228931248,5.57351465,179.42,179.39,35.47612084]
[1747228931418,143.57351465,179.42,179.39,27.7697199]
[1747228932351,138.0,179.42,179.41,26.80640094]
[1747228932524,5.57217531,179.47,179.41,26.80640094]
[1747228932858,5.57217531,179.47,179.46,26.80640094]
[1747228933153,5.57217531,179.47,179.46,45.88640094]
[1747228933521,143.57173617,179.48,179.46,45.88640094]
[1747228933715,138.0,179.48,179.46,45.88640094]
[1747228934160,138.0,179.48,179.47,26.80640094]
[1747228934664,33.04340454,179.56,179.47,26.80640094]
[1747228934665,138.0,179.53,179.47,26.80640094]
[1747228934964,143.5700997,179.53,179.51,26.80640094]
[1747228935259,143.5700997,179.53,179.46,47.48770094]
[1747228935445,143.5700997,179.53,179.5,26.80640094]
[1747228936436,26.80640094,179.52,179.46,1.6013]
[1747228936635,138.0,179.51,179.46,19.08]
[1747228936937,138.0,179.51,179.46,26.80640094]
[1747228937127,138.0,179.51,179.46,45.88640094]
[1747228937642,5.57103064,179.5,179.46,45.88640094]
[1747228938575,138.0,179.49,179.46,19.08]
[1747228938741,164.80640094,179.48,179.43,26.80640094]
[1747228938934,164.80640094,179.48,179.43,45.84640094]
[1747228939447,138.0,179.48,179.45,26.80640094]
[1747228939759,5.57196188,179.47,179.45,26.80640094]
[1747228939938,5.57196188,179.47,179.43,19.04]
[1747228940132,5.57196188,179.47,179.44,26.80640094]
[1747228940669,138.0,179.48,179.46,26.80640094]
[1747228940841,143.5716821,179.48,179.47,26.80640094]
[1747228941270,138.0,179.48,179.47,26.80640094]
[1747228942867,143.57165143,179.48,179.47,26.80640094]
[1747228943166,138.0,179.48,179.47,26.80640094]
[1747228945968,143.57165143,179.48,179.44,26.0]
[1747228946171,143.57165143,179.48,179.47,26.80640094]
[1747228946549,143.57165143,179.48,179.45,19.04]
[1747228946852,143.57165143,179.48,179.47,26.80640094]
[1747228947061,138.0,179.48,179.47,26.80640094]
[1747228947873,143.57165143,179.48,179.47,26.80640094]
[1747228948560,143.57165143,179.48,179.45,26.80640094]
[1747228948738,157.50078002,179.48,179.45,19.08]
[1747228948941,157.50078002,179.48,179.44,45.88640094]
[1747228949169,157.50078002,179.48,179.45,26.80640094]
[1747228949543,157.50078002,179.48,179.44,19.08]
[1747228949544,138.0,179.48,179.47,26.80640094]
[1747228950888,143.57165143,179.48,179.41,1.6494]
[1747228951085,138.0,179.47,179.45,19.08]
[1747228951701,138.0,179.47,179.45,26.80640094]
[1747228952075,5.57227237,179.46,179.45,26.80640094]
[1747228952590,5.57227237,179.46,179.44,19.08]
[1747228952963,19.5029533,179.46,179.43,26.80640094]
[1747228953162,138.0,179.45,179.42,26.80640094]
[1747228953572,138.0,179.45,179.43,26.80640094]
[1747228954081,138.0,179.45,179.44,26.80640094]
[1747228955286,138.0,179.45,179.44,32.37929438]
[1747228955589,138.0,179.53,179.45,18.64964886]
[1747228955892,138.0,179.53,179.52,26.80640094]
[1747228956091,138.0,179.53,179.52,45.88640094]
[1747228957083,143.5700997,179.53,179.52,19.08]
[1747228957304,143.5700997,179.53,179.52,45.88640094]
[1747228957506,143.5700997,179.53,179.52,19.1]
[1747228959784,143.5700997,179.53,179.51,26.80640094]
[1747228960089,157.49534896,179.53,179.5,45.86640094]
[1747228960286,157.49534896,179.53,179.5,26.80640094]
[1747228960493,138.0,179.52,179.49,26.80640094]
[1747228960794,138.0,179.52,179.48,19.04]
[1747228960795,138.0,179.52,179.51,26.80640094]
[1747228961925,143.57051491,179.52,179.48,19.04]
[1747228962087,143.57051491,179.52,179.51,26.80640094]
[1747228962609,143.57051491,179.52,179.5,45.86640094]
[1747228963007,143.57051491,179.52,179.51,26.80640094]
[1747228964518,143.57051491,179.52,179.5,45.86640094]
[1747228964926,143.57051491,179.52,179.51,26.80640094]
[1747228966429,138.0,179.52,179.51,26.80640094]
[1747228967329,5.56916907,179.56,179.51,26.80640094]
[1747228967528,143.56889677,179.57,179.55,26.80640094]
[1747228967826,143.56738021,179.62,179.56,45.84640094]
[1747228968003,143.56738021,179.62,179.61,26.80640094]
[1747228968196,138.0,179.62,179.61,26.80640094]
[1747228969337,5.56544968,179.68,179.61,26.80640094]
[1747228969506,5.56544968,179.68,179.66,26.80640094]
[1747228969897,19.4790739,179.68,179.58,26.0]
[1747228970098,19.4790739,179.68,179.62,26.80640094]
[1747228970099,5.56606924,179.66,179.62,26.80640094]
[1747228970330,5.56606924,179.66,179.64,26.80640094]
[1747228971315,5.56606924,179.66,179.65,26.80640094]
[1747228971639,5.56606924,179.66,179.59,24.60811008]
[1747228971926,5.56606924,179.66,179.64,26.80640094]
[1747228972226,5.56606924,179.66,179.65,19.04]
[1747228972706,5.56606924,179.66,179.63,26.80640094]
[1747228972908,19.48124234,179.66,179.63,45.84640094]
[1747228973208,19.48124234,179.66,179.64,26.80640094]
[1747228973531,19.48124234,179.66,179.63,45.84640094]
[1747228973731,164.80640094,179.65,179.55,26.80640094]
[1747228973918,26.80640094,179.64,179.59,26.80640094]
[1747228974240,19.48558066,179.62,179.58,26.80640094]
[1747228974841,19.48558066,179.62,179.58,19.04]
[1747228975212,19.48558066,179.62,179.59,26.80640094]
[1747228976918,19.48558066,179.62,179.55,26.80640094]
[1747228977114,138.0,179.61,179.57,26.80640094]
[1747228978012,138.0,179.61,179.56,19.04]
[1747228978013,138.0,179.61,179.58,26.80640094]
[1747228978636,5.56792873,179.6,179.58,26.80640094]
[1747228978812,5.56792873,179.6,179.56,19.04]
[1747228979012,5.56792873,179.6,179.58,26.80640094]
[1747228979533,19.48775055,179.6,179.57,26.80640094]
[1747228979758,19.48775055,179.6,179.57,45.84640094]
[1747228980087,19.48775055,179.6,179.5,18.933972]
[1747228980088,164.80640094,179.59,179.49,210.1107]
[1747228980231,164.80640094,179.59,179.54,26.80640094]
[1747228980560,138.0,179.59,179.58,26.80640094]
[1747228980769,143.56823876,179.59,179.58,45.84640094]
[1747228980942,143.56823876,179.59,179.58,19.04]
[1747228981144,184.29523661,179.59,179.54,26.80640094]
[1747228981340,184.29523661,179.59,179.53,19.04]
[1747228981534,184.29523661,179.59,179.54,26.80640094]
[1747228983742,26.80640094,179.56,179.52,19.04]
[1747228984060,138.0,179.55,179.51,19.04]
[1747228984242,138.0,179.55,179.52,26.80640094]
[1747228985366,5.56978946,179.54,179.51,19.04]
[1747228985544,5.56978946,179.54,179.45,1.5715]
[1747228985545,46.30066405,179.54,179.45,1.5715]
[1747228985733,164.80640094,179.53,179.48,26.80640094]
[1747228985937,164.80640094,179.52,179.47,45.84640094]
[1747228986133,164.80640094,179.52,179.46,19.02]
[1747228986337,164.76163254,179.51,179.46,64.86640094]
[1747228986643,26.80640094,179.49,179.44,26.80640094]
[1747228986850,137.9552316,179.48,179.44,26.80640094]
[1747228987357,5.57227237,179.46,179.44,26.80640094]
[1747228987978,137.9552316,179.45,179.42,26.80640094]
[1747228988330,137.9552316,179.45,179.43,26.80640094]
[1747228989226,137.9552316,179.45,179.42,26.80640094]
[1747228989426,5.57289344,179.44,179.43,26.80640094]
[1747228991346,5.57289344,179.44,179.4,20.5334]
[1747228991547,5.57289344,179.44,179.41,45.84640094]
[1747228991752,5.57289344,179.44,179.4,20.5334]
[1747228991753,137.9552316,179.43,179.4,19.02]
[1747228991962,137.9552316,179.42,179.4,19.02]
[1747228992143,137.9552316,179.42,179.39,8.6697199]
[1747228992335,137.9552316,179.41,179.39,8.6697199]
[1747228992537,164.76163254,179.4,179.39,8.6697199]
[1747228992763,137.9552316,179.4,179.39,8.6697199]
[1747228993066,191.04595568,179.4,179.39,8.6697199]
[1747228993440,51.31450894,179.4,179.39,8.6697199]
[1747228993653,44.64964886,179.37,179.36,10.71969697]
[1747228993865,71.59821137,179.37,179.36,10.71969697]
[1747228994374,71.74037294,179.37,179.36,10.71969697]
[1747228995497,77.31544123,179.37,179.36,10.71969697]
[1747228995880,31.71722986,179.37,179.36,10.71969697]
[1747228996080,5.57506829,179.37,179.36,10.71969697]
[1747228996977,5.57382531,179.41,179.36,37.52609791]
[1747228997191,5.57382531,179.41,179.38,26.80640094]
[1747228997501,5.57351465,179.42,179.39,26.80640094]
[1747228997802,5.57351465,179.42,179.36,10.71969697]
[1747228997972,5.57351465,179.42,179.4,26.80640094]
[1747228998613,5.57289344,179.44,179.4,26.80640094]
[1747228998809,5.57289344,179.44,179.41,26.80640094]
[1747228999112,5.57227237,179.46,179.43,26.80640094]
[1747228999306,5.57227237,179.46,179.42,26.80640094]
[1747229000289,5.57227237,179.46,179.44,26.80640094]
[1747229000893,5.57227237,179.46,179.43,26.80640094]
[1747229001085,5.57227237,179.46,179.42,26.80640094]
[1747229001288,19.5029533,179.46,179.42,26.80640094]
[1747229002238,5.57227237,179.46,179.43,26.80640094]
[1747229003487,32.37867331,179.46,179.41,19.04]
[1747229003817,13.93068093,179.46,179.41,45.84640094]
[1747229004002,13.93068093,179.46,179.42,26.80640094]
[1747229004618,32.37805237,179.48,179.43,26.80640094]
[1747229004797,138.0,179.47,179.43,26.80640094]
[1747229005115,164.80640094,179.47,179.42,26.80640094]
[1747229005323,26.80640094,179.46,179.41,19.04]
[1747229005489,26.80640094,179.46,179.41,45.84640094]
[1747229005690,138.0,179.47,179.42,26.80640094]
[1747229005892,5.57227237,179.46,179.44,26.80640094]
[1747229006993,5.57227237,179.46,179.45,26.80640094]
[1747229007238,138.0,179.47,179.45,26.80640094]
[1747229007397,138.0,179.47,179.46,26.80640094]
[1747229008413,5.57058947,179.52,179.46,59.18507425]
[1747229008595,5.57058947,179.52,179.47,19.04]
[1747229008800,5.57058947,179.52,179.51,26.80640094]
[1747229009897,5.5700997,179.53,179.51,26.80640094]
[1747229010518,5.54489441,179.53,179.52,26.80640094]
[1747229010937,138.0,179.54,179.53,1.5341]
[1747229011116,5.56854883,179.58,179.53,47.38050094]
[1747229011315,5.56854883,179.58,179.57,26.80640094]
[1747229015615,5.56854883,179.58,179.57,45.84640094]
[1747229016342,13.91922624,179.61,179.57,45.84640094]
[1747229016540,5.56699883,179.63,179.6,26.80640094]
[1747229016709,5.56699883,179.63,179.62,26.80640094]
[1747229018338,5.56699883,179.63,179.62,26.30640094]
[1747229019006,5.56699883,179.63,179.62,27.83620094]
[1747229019443,138.0,179.64,179.62,27.83620094]
[1747229019617,143.56668893,179.64,179.63,45.84640094]
[1747229020012,138.0,179.64,179.63,45.84640094]
[1747229020211,143.56668893,179.64,179.63,45.84640094]
[1747229021522,143.56668893,179.64,179.63,19.02]
[1747229022344,138.0,179.64,179.63,45.82640094]
[1747229022540,143.56668893,179.64,179.63,45.82640094]
[1747229022737,5.56668893,179.64,179.63,45.82640094]
[1747229023348,5.56513996,179.69,179.63,72.63280188]
[1747229023524,5.56513996,179.69,179.68,26.80640094]
[1747229024226,138.0,179.7,179.68,26.80640094]
[1747229024227,143.56487034,179.7,179.68,26.80640094]
[1747229024427,138.0,179.7,179.69,45.82640094]
[1747229024822,143.56483027,179.7,179.69,45.82640094]
[1747229026855,143.56483027,179.7,179.64,26.80640094]
[1747229027059,143.56483027,179.7,179.65,19.02]
[1747229027360,138.0,179.69,179.66,26.80640094]
[1747229028060,138.0,179.69,179.67,26.80640094]
[1747229028364,138.0,179.69,179.68,26.80640094]
[1747229028570,143.56513996,179.69,179.68,26.80640094]
[1747229029366,5.56513996,179.69,179.68,26.80640094]
[1747229029880,13.90996607,179.73,179.68,26.80640094]
[1747229029881,5.56421099,179.72,179.68,26.80640094]
[1747229030042,5.56421099,179.72,179.7,26.80640094]
[1747229030675,13.90996607,179.73,179.7,26.80640094]
[1747229031572,5.56359185,179.74,179.71,26.80640094]
[1747229031878,5.56359185,179.74,179.72,45.82640094]
[1747229032386,5.56359185,179.74,179.73,26.80640094]
[1747229032683,143.56346244,179.75,179.73,26.80640094]
[1747229032848,143.56346244,179.75,179.74,26.80640094]
[1747229033046,5.56289471,179.77,179.74,26.80640094]
[1747229033271,5.56289471,179.77,179.76,26.80640094]
[1747229034765,5.5620446,179.79,179.76,26.80640094]
[1747229037373,5.5620446,179.79,179.73,26.80640094]
[1747229037586,5.5620446,179.79,179.73,45.4560498]
[1747229037788,5.5620446,179.79,179.78,26.80640094]
[1747229038077,143.56174862,179.8,179.78,45.80640094]
[1747229038250,143.56174862,179.8,179.79,26.80640094]
[1747229038658,143.56173526,179.8,179.79,26.80640094]
[1747229039875,5.56173526,179.8,179.79,26.80640094]
[1747229040371,19.46607341,179.8,179.79,19.0]
[1747229040571,13.90433815,179.8,179.79,19.0]
[1747229040773,5.56142594,179.81,179.79,45.80640094]
[1747229040990,5.56142594,179.81,179.8,26.80640094]
[1747229041649,5.56018904,179.85,179.8,26.80640094]
[1747229041854,143.56018904,179.85,179.79,19.0]
[1747229043098,157.46066165,179.85,179.79,19.0]
[1747229043251,157.46066165,179.85,179.76,18.64964886]
[1747229043454,26.70631263,179.82,179.77,19.0]
[1747229043866,138.0,179.84,179.77,19.0]
[1747229045160,5.56080742,179.83,179.77,24.5625738]
[1747229045363,5.5595708,179.87,179.78,18.64964886]
[1747229045559,5.5595708,179.87,179.8,44.64964886]
[1747229045850,143.55933017,179.88,179.83,26.0]
[1747229046050,143.55933017,179.88,179.84,19.0]
[1747229047075,170.2656428,179.88,179.77,18.64964886]
[1747229047387,170.2656428,179.88,179.8,18.98]
[1747229047591,143.55933017,179.88,179.8,18.98]
[1747229048089,138.0,179.87,179.81,18.98]
[1747229049257,5.5598799,179.86,179.81,18.98]
[1747229049655,19.45957966,179.86,179.81,18.98]
[1747229050166,46.16589229,179.86,179.8,18.98]
[1747229050481,19.45957966,179.86,179.8,37.96]
[1747229053105,5.5598799,179.86,179.8,37.96]
[1747229054508,5.5598799,179.86,179.8,43.5216956]
[1747229054712,5.5598799,179.86,179.8,37.96]
[1747229055591,19.45957966,179.86,179.8,37.96]
[1747229056412,138.0,179.85,179.79,18.98]
[1747229056578,26.70631263,179.81,179.79,18.98]
[1747229056786,138.0,179.8,179.79,18.98]
[1747229057121,19.45957966,179.86,179.79,18.98]
[1747229057292,26.70631263,179.85,179.8,18.98]
[1747229057621,5.56080742,179.83,179.8,18.98]
[1747229058176,32.26712005,179.83,179.8,18.98]
[1747229058806,138.0,179.82,179.78,18.98]
[1747229059028,138.0,179.81,179.78,18.98]
[1747229059699,143.56173526,179.8,179.78,18.98]
[1747229060728,157.46607341,179.8,179.74,18.98]
[1747229060892,157.46607341,179.8,179.75,18.98]
[1747229064716,157.46607341,179.8,179.73,1.5954]
[1747229064717,164.70631263,179.79,179.73,1.5954]
[1747229064895,26.70631263,179.77,179.71,227.2]
[1747229065090,26.70631263,179.77,179.72,18.98]
[1747229065313,184.17455158,179.78,179.72,18.98]
[1747229066015,26.70631263,179.77,179.72,18.98]
[1747229066222,138.0,179.76,179.72,18.98]
[1747229066534,26.70631263,179.73,179.65,20.4821]
[1747229066724,164.70631263,179.72,179.67,18.98]
[1747229066907,19.47582215,179.71,179.65,20.4821]
[1747229067223,46.18213478,179.71,179.66,18.98]
[1747229067404,19.47582215,179.71,179.66,18.98]
[1747229068328,46.18213478,179.71,179.66,18.98]
[1747229068629,164.70631263,179.7,179.66,18.98]
[1747229068935,26.70631263,179.67,179.61,1.54]
[1747229069100,26.70631263,179.65,179.62,18.98]
[1747229069306,138.0,179.66,179.62,18.98]
[1747229069513,164.70631263,179.66,179.62,18.98]
[1747229070223,26.70631263,179.64,179.62,18.98]
[1747229070407,26.70631263,179.64,179.57,26.7779]
[1747229070408,26.70631263,179.63,179.59,18.98]
[1747229070621,138.0,179.62,179.59,18.98]
[1747229070938,5.56761872,179.61,179.59,18.98]
[1747229071642,138.0,179.62,179.59,18.98]
[1747229072141,143.56739353,179.62,179.59,18.98]
[1747229076230,157.48566543,179.62,179.57,1.54]